bitfinex/quotes_SOLUSD_20241220
["timestamp","ask_amount","ask_price","bid_price","bid_amount"]
[1734676284028,26.16962815,191.56,191.49,26.16962815]
[1734676284251,26.16962815,191.59,191.52,26.16962815]
[1734676284459,26.16962815,191.61,191.54,26.16962815]
[1734676284739,26.16962815,191.61,191.53,26.16962815]
[1734676284963,26.16962815,191.63,191.56,26.16962815]
[1734676285160,26.16962815,191.64,191.57,26.16962815]
[1734676285319,26.16962815,191.65,191.57,26.16962815]
[1734676287056,26.16962815,191.66,191.58,26.16962815]
[1734676287348,26.16962815,191.64,191.56,26.16962815]
[1734676288141,26.16962815,191.63,191.56,26.16962815]
[1734676288320,26.16962815,191.64,191.56,26.16962815]
[1734676288943,26.16962815,191.63,191.56,26.16962815]
[1734676290145,26.16962815,191.63,191.55,6.0461]
[1734676292561,26.16962815,191.61,191.54,26.16962815]
[1734676292868,26.16962815,191.59,191.52,26.16962815]
[1734676293550,26.16962815,191.59,191.52,14.43133403]
[1734676296267,13.0461,191.63,191.54,26.16962815]
[1734676296476,26.16962815,191.64,191.56,26.16962815]
[1734676296636,26.16962815,191.65,191.57,26.16962815]
[1734676296841,26.16962815,191.66,191.58,26.16962815]
[1734676297035,16.35428208,191.66,191.58,16.35428208]
[1734676297359,16.35428208,191.65,191.57,16.35428208]
[1734676297854,16.35428208,191.65,191.51,0.78293926]
[1734676297855,16.35428208,191.67,191.6,16.35428208]
[1734676298160,16.35428208,191.71,191.64,16.35428208]
[1734676298370,16.35428208,191.72,191.65,16.35428208]
[1734676298848,16.35428208,191.73,191.66,16.35428208]
[1734676299046,26.14650538,191.75,191.67,26.14650538]
[1734676299345,26.14650538,191.75,191.68,26.14650538]
[1734676299559,26.14650538,191.76,191.68,26.14650538]
[1734676299958,26.14650538,191.76,191.61,0.78253893]
[1734676299959,26.14650538,191.77,191.7,26.14650538]
[1734676300135,14.5048544,191.79,191.7,26.14650538]
[1734676300136,26.14650538,191.78,191.7,26.14650538]
[1734676300775,3.02955936,191.77,191.71,26.14650538]
[1734676301071,3.02955936,191.77,191.72,26.14650538]
[1734676301234,40.65135978,191.79,191.72,26.14650538]
[1734676301753,40.65135978,191.79,191.69,35.72040538]
[1734676301754,26.14650538,191.77,191.69,35.72040538]
[1734676301938,3.02956119,191.78,191.69,9.5739]
[1734676301939,26.14650538,191.75,191.69,9.5739]
[1734676302135,26.14650538,191.74,191.69,3.1302]
[1734676302338,26.14650538,191.73,191.66,26.14650538]
[1734676302842,26.14650538,191.69,191.64,3.2444]
[1734676303040,26.14650538,191.67,191.6,6.1919]
[1734676303665,26.14650538,191.65,191.59,3.1582]
[1734676303847,26.14650538,191.63,191.55,26.14650538]
[1734676304240,26.14650538,191.63,191.56,26.14650538]
[1734676305041,13.0429,191.68,191.57,26.14650538]
[1734676305042,26.14650538,191.65,191.57,26.14650538]
[1734676306261,26.14650538,191.63,191.55,26.14650538]
[1734676306651,26.14650538,191.63,191.57,26.14650538]
[1734676307160,26.14650538,191.65,191.57,26.14650538]
[1734676308964,26.14650538,191.67,191.59,26.14650538]
[1734676309762,26.14650538,191.7,191.62,26.14650538]
[1734676310463,26.14650538,191.71,191.63,26.14650538]
[1734676310862,26.0715,191.78,191.58,0.78263715]
[1734676310863,26.14650538,191.72,191.64,26.14650538]
[1734676311069,26.14650538,191.73,191.66,26.14650538]
[1734676311562,26.14650538,191.73,191.67,26.14650538]
[1734676311872,26.14650538,191.75,191.68,26.14650538]
[1734676312563,26.14650538,191.75,191.67,26.14650538]
[1734676312763,27.5400544,191.79,191.65,26.14650538]
[1734676312764,26.14650538,191.72,191.65,26.14650538]
[1734676313063,26.14650538,191.71,191.64,36.11480538]
[1734676313237,26.14650538,191.71,191.64,9.9683]
[1734676315270,26.14650538,191.71,191.64,36.11480538]
[1734676315851,26.14650538,191.72,191.65,26.14650538]
[1734676317565,26.14650538,191.7,191.64,9.9683]
[1734676319467,26.14650538,191.7,191.61,26.14650538]
[1734676319672,26.14650538,191.66,191.6,6.18]
[1734676319867,26.14650538,191.66,191.59,3.2029]
[1734676320247,3.04423999,191.65,191.59,3.2029]
[1734676320658,3.04423999,191.65,191.61,26.14650538]
[1734676320858,26.14650538,191.68,191.61,26.14650538]
[1734676321062,26.14650538,191.7,191.61,26.14650538]
[1734676321265,26.14650538,191.7,191.63,26.14650538]
[1734676321459,26.14650538,191.7,191.62,26.14650538]
[1734676321749,26.14650538,191.7,191.63,26.14650538]
[1734676322971,16.3462414,191.7,191.63,16.3462414]
[1734676323173,16.3462414,191.69,191.62,16.3462414]
[1734676323362,16.3462414,191.7,191.62,16.3462414]
[1734676323857,13.0398,191.72,191.59,19.5491414]
[1734676323858,16.3462414,191.67,191.59,19.5491414]
[1734676324155,16.3462414,191.65,191.59,3.2029]
[1734676324348,16.3462414,191.64,191.56,16.3462414]
[1734676324554,16.3462414,191.63,191.56,16.3462414]
[1734676324747,16.3462414,191.63,191.55,22.6445414]
[1734676325169,16.3462414,191.62,191.55,22.6445414]
[1734676325374,16.3462414,191.59,191.54,3.3749]
[1734676325872,16.3462414,191.57,191.51,6.4723]
[1734676326375,16.3462414,191.57,191.49,3.3726]
[1734676326376,16.3462414,191.56,191.49,19.7188414]
[1734676326683,16.3462414,191.55,191.49,3.3726]
[1734676327046,26.19472095,191.55,191.49,3.3726]
[1734676327749,26.19472095,191.56,191.49,3.3726]
[1734676328476,26.19472095,191.58,191.51,26.19472095]
[1734676328677,26.19472095,191.6,191.53,26.19472095]
[1734676328877,26.19472095,191.59,191.52,26.19472095]
[1734676329051,26.19472095,191.59,191.5,26.19472095]
[1734676329258,26.19472095,191.57,191.49,3.3726]
[1734676330263,13.0478,191.61,191.46,32.24602095]
[1734676330264,26.19472095,191.53,191.46,32.24602095]
[1734676330458,26.19472095,191.51,191.44,29.46852095]
[1734676330663,26.19472095,191.51,191.44,3.2738]
[1734676332263,26.19472095,191.51,191.44,29.46852095]
[1734676332977,26.19472095,191.53,191.46,26.19472095]
[1734676333193,26.19472095,191.53,191.44,29.46852095]
[1734676334184,26.19472095,191.47,191.42,2.066e-05]
[1734676334387,26.19472095,191.43,191.29,7.76196248]
[1734676334588,0.7833,191.42,191.3,26.19472095]
[1734676334881,26.19472095,191.38,191.3,26.19472095]
[1734676335055,26.19472095,191.36,191.29,7.76196248]
[1734676335259,26.19472095,191.34,191.26,32.83412095]
[1734676335515,0.7833,191.33,191.26,32.83412095]
[1734676335786,26.19472095,191.32,191.22,29.45752095]
[1734676335989,26.19472095,191.3,191.22,29.45752095]
[1734676336192,0.7833,191.29,191.22,29.45752095]
[1734676336886,26.19472095,191.32,191.22,29.45752095]
[1734676336887,0.7833,191.31,191.24,26.19472095]
[1734676338373,26.19472095,191.32,191.24,26.19472095]
[1734676338576,0.7833,191.31,191.24,26.19472095]
[1734676339171,0.7833,191.31,191.22,29.45752095]
[1734676339371,49.97160495,191.3,191.22,29.45752095]
[1734676339585,26.19472095,191.28,191.22,3.2628]
[1734676339792,0.7833,191.27,191.22,3.2628]
[1734676340089,26.19472095,191.3,191.22,29.45752095]
[1734676341084,0.7833,191.29,191.22,29.45752095]
[1734676341495,26.19472095,191.32,191.24,26.19472095]
[1734676342509,26.19472095,191.34,191.26,26.19472095]
[1734676343002,26.19472095,191.36,191.28,26.19472095]
[1734676343178,26.19472095,191.38,191.3,26.19472095]
[1734676343382,26.19472095,191.36,191.28,26.19472095]
[1734676343572,0.62315781,191.35,191.28,26.19472095]
[1734676343885,26.19472095,191.36,191.28,26.19472095]
[1734676344391,26.19472095,191.36,191.3,26.19472095]
[1734676344580,26.19472095,191.38,191.3,26.19472095]
[1734676346187,26.19472095,191.36,191.28,26.19472095]
[1734676346386,0.62315781,191.35,191.28,26.19472095]
[1734676346701,0.62315781,191.35,191.26,26.19472095]
[1734676346702,26.19472095,191.34,191.26,26.19472095]
[1734676346870,26.19472095,191.32,191.26,26.19472095]
[1734676347071,0.62315781,191.31,191.26,26.19472095]
[1734676347383,0.62315781,191.31,191.24,26.19472095]
[1734676347590,26.19472095,191.3,191.22,29.45752095]
[1734676347891,0.62315781,191.29,191.22,29.45752095]
[1734676348275,26.19472095,191.3,191.22,29.45752095]
[1734676348485,0.62315781,191.34,191.22,29.45752095]
[1734676348486,26.81787876,191.34,191.26,26.19472095]
[1734676348698,26.81787876,191.36,191.28,26.19472095]
[1734676348872,26.19472095,191.38,191.3,26.19472095]
[1734676349294,0.62315781,191.37,191.3,26.19472095]
[1734676349793,26.19472095,191.38,191.3,26.19472095]
[1734676349990,26.19472095,191.4,191.32,26.19472095]
[1734676350168,14.53296271,191.42,191.26,20.0]
[1734676350169,26.19472095,191.36,191.26,20.0]
[1734676350487,26.19472095,191.3,191.22,26.19472095]
[1734676350699,26.19472095,191.3,191.17,0.78397062]
[1734676350988,26.19472095,191.28,191.2,26.19472095]
[1734676351190,26.19472095,191.3,191.16,24.08174536]
[1734676351395,0.62315781,191.29,191.22,26.19472095]
[1734676351588,26.19472095,191.28,191.2,26.19472095]
[1734676351895,0.62315781,191.27,191.2,26.19472095]
[1734676352590,26.19472095,191.3,191.22,26.19472095]
[1734676352786,0.62315781,191.29,191.22,26.19472095]
[1734676353487,26.19472095,191.28,191.2,26.19472095]
[1734676353672,0.62315781,191.27,191.2,26.19472095]
[1734676354166,26.19472095,191.3,191.22,26.19472095]
[1734676354367,0.62315781,191.29,191.22,26.19472095]
[1734676357391,26.19472095,191.3,191.22,26.19472095]
[1734676357595,26.19472095,191.32,191.24,26.19472095]
[1734676357983,0.62315781,191.31,191.24,26.19472095]
[1734676358300,26.19472095,191.3,191.22,26.19472095]
[1734676358498,0.62315781,191.29,191.22,26.19472095]
[1734676359801,26.19472095,191.3,191.22,26.19472095]
[1734676360001,0.62315781,191.34,191.18,13.86070043]
[1734676360296,0.62315781,191.34,191.01,125.57]
[1734676360297,23.776884,191.15,190.96,10.4945476]
[1734676360470,26.19472095,191.05,190.96,10.4945476]
[1734676360875,26.19472095,191.07,190.97,29.86472095]
[1734676361090,26.19472095,191.11,191.01,26.19472095]
[1734676361294,26.19472095,191.11,190.97,3.67]
[1734676361295,26.19472095,191.03,190.97,0.17]
[1734676361501,26.19472095,191.07,190.98,26.19472095]
[1734676361689,26.19472095,191.09,190.98,26.19472095]
[1734676361890,26.19472095,191.09,191.0,26.19472095]
[1734676362374,26.19472095,191.11,191.02,26.19472095]
[1734676362577,26.19472095,191.11,191.02,29.46242095]
[1734676362778,26.19472095,191.11,191.03,6.5373]
[1734676363475,26.19472095,191.05,190.97,6.2825]
[1734676364575,26.19472095,191.03,190.97,6.2825]
[1734676364791,26.13182051,191.03,190.97,6.2825]
[1734676364997,26.19472095,191.07,190.98,26.19472095]
[1734676365302,26.19472095,191.05,190.97,6.2825]
[1734676365488,26.19472095,191.03,190.97,6.2825]
[1734676365688,26.19472095,191.03,190.97,6.1125]
[1734676365689,0.9816899,191.02,190.97,6.1125]
[1734676365906,26.19472095,191.03,190.97,6.1125]
[1734676366602,26.19472095,191.03,190.96,3.8778476]
[1734676366899,26.19472095,191.05,190.97,26.19472095]
[1734676367400,26.19472095,191.03,190.96,3.8778476]
[1734676367602,26.19472095,191.05,190.96,30.07256855]
[1734676367791,26.19472095,191.03,190.96,0.6390476]
[1734676368314,26.19472095,191.07,190.98,26.19472095]
[1734676368883,0.9814238,191.06,190.98,26.19472095]
[1734676369603,26.19472095,191.07,190.98,26.19472095]
[1734676369983,0.98136139,191.06,190.98,26.19472095]
[1734676370507,26.19472095,191.05,190.96,26.83376855]
[1734676371005,0.98153641,191.04,190.96,0.6390476]
[1734676371321,26.19472095,191.03,190.96,0.6390476]
[1734676371499,26.19472095,191.05,190.96,26.83376855]
[1734676372388,26.19472095,191.07,190.98,26.19472095]
[1734676372901,0.98138994,191.06,190.98,26.19472095]
[1734676373222,26.19472095,191.07,190.98,26.19472095]
[1734676373388,0.98147829,191.06,190.98,26.19472095]
[1734676374232,26.19472095,191.06,190.98,26.19472095]
[1734676374504,26.19472095,191.08,191.0,26.19472095]
[1734676374723,0.98135542,191.07,191.0,26.19472095]
[1734676375089,0.98135542,191.07,190.98,26.19472095]
[1734676375700,26.19472095,191.08,190.98,26.19472095]
[1734676376691,26.19472095,191.08,191.0,26.19472095]
[1734676379026,26.19472095,191.1,191.02,26.19472095]
[1734676380609,26.19472095,191.1,191.02,32.61392095]
[1734676381413,26.19472095,191.08,191.02,32.61392095]
[1734676381599,26.19472095,191.08,191.02,6.4192]
[1734676381915,26.19472095,191.06,191.0,3.1786]
[1734676382624,26.19472095,191.01,190.96,0.6390476]
[1734676382921,26.19472095,191.03,190.96,0.6390476]
[1734676383417,26.19472095,191.07,190.99,26.19472095]
[1734676383717,26.19472095,191.11,191.03,26.19472095]
[1734676384106,0.98141436,191.14,191.02,26.19472095]
[1734676384107,26.19472095,191.1,191.02,26.19472095]
[1734676384722,26.19472095,191.1,191.03,26.19472095]
[1734676384920,0.98141436,191.14,191.07,26.19472095]
[1734676385123,26.19472095,191.15,191.07,26.19472095]
[1734676385323,26.19472095,191.13,191.06,26.19472095]
[1734676385504,26.19472095,191.11,191.04,29.45382095]
[1734676386721,26.19472095,191.13,191.04,29.45382095]
[1734676386921,26.19472095,191.13,191.06,26.19472095]
[1734676387120,26.19472095,191.15,191.07,26.19472095]
[1734676387820,26.19472095,191.16,191.08,26.19472095]
[1734676388024,26.19472095,191.15,191.08,26.19472095]
[1734676388427,26.19472095,191.17,191.09,26.19472095]
[1734676388797,26.19472095,191.17,191.05,13.0855]
[1734676388798,26.19472095,191.21,191.13,26.19472095]
[1734676388997,26.19472095,191.21,191.14,26.19472095]
[1734676389213,26.19472095,191.2,191.06,23.776884]
[1734676389412,26.19472095,191.18,191.1,26.19472095]
[1734676389613,26.19472095,191.2,191.12,26.19472095]
[1734676389807,26.19472095,191.21,191.13,26.19472095]
[1734676390130,26.19472095,191.21,191.08,20.0]
[1734676390131,0.98074986,191.2,191.11,26.19472095]
[1734676390421,26.19472095,191.19,191.12,26.19472095]
[1734676390619,26.19472095,191.21,191.13,26.19472095]
[1734676390819,27.17538928,191.2,191.12,26.19472095]
[1734676391017,26.19472095,191.19,191.12,26.19472095]
[1734676391224,26.19472095,191.21,191.12,26.19472095]
[1734676391931,6.3321,191.24,191.01,3.12399354]
[1734676391932,26.19472095,191.14,191.01,3.12399354]
[1734676392141,26.19472095,191.14,191.06,26.19472095]
[1734676392734,27.17539039,191.2,191.04,26.19472095]
[1734676392735,26.19472095,191.12,191.04,26.19472095]
[1734676392939,0.98123096,191.11,191.04,26.19472095]
[1734676393640,26.19472095,191.1,191.02,26.19472095]
[1734676393814,0.98135796,191.09,191.02,26.19472095]
[1734676394012,26.19472095,191.1,191.02,26.19472095]
[1734676394210,0.98130444,191.09,191.02,26.19472095]
[1734676394534,0.98130444,191.09,191.0,26.19472095]
[1734676394535,26.19472095,191.08,191.0,26.19472095]
[1734676394836,26.19472095,191.06,190.98,35.68302095]
[1734676395405,0.98149144,191.05,190.98,35.68302095]
[1734676395600,26.19472095,191.06,190.98,35.68302095]
[1734676396407,26.19472095,191.08,191.0,26.19472095]
[1734676396834,26.19472095,191.1,191.02,26.19472095]
[1734676397030,26.19472095,191.1,191.04,26.19472095]
[1734676398132,26.19472095,191.12,191.04,26.19472095]
[1734676400138,26.19472095,191.11,191.03,26.19472095]
[1734676400777,26.19472095,191.11,191.02,26.19472095]
[1734676401030,26.19472095,191.08,191.0,26.19472095]
[1734676402847,26.19472095,191.1,191.03,26.19472095]
[1734676403025,26.19472095,191.11,191.04,26.19472095]
[1734676403618,26.19472095,191.11,191.03,26.19472095]
[1734676405071,26.19472095,191.11,191.04,26.19472095]
[1734676405361,26.19472095,191.11,191.02,26.19472095]
[1734676405530,26.19472095,191.08,191.01,26.19472095]
[1734676406133,0.98123198,191.14,191.02,26.19472095]
[1734676406337,26.19472095,191.11,191.03,26.19472095]
[1734676406533,26.19472095,191.07,191.0,26.19472095]
[1734676406834,26.19472095,191.08,191.0,26.19472095]
[1734676407875,26.19472095,191.08,191.01,26.19472095]
[1734676408330,26.19472095,191.09,191.01,26.19472095]
[1734676411257,26.19472095,191.11,191.03,26.19472095]
[1734676411454,26.19472095,191.11,191.05,26.19472095]
[1734676411755,26.19472095,191.15,191.07,26.19472095]
[1734676411963,6.5644,191.19,191.01,16.17291073]
[1734676411964,26.19472095,191.13,191.02,23.776884]
[1734676412131,26.19472095,191.13,191.04,26.19472095]
[1734676413138,3.04533323,191.12,191.04,26.19472095]
[1734676413664,26.19472095,191.11,191.04,26.19472095]
[1734676415469,26.19472095,191.11,191.02,26.19472095]
[1734676416636,26.19472095,191.09,191.02,26.19472095]
[1734676416865,26.19472095,191.09,191.0,26.19472095]
[1734676417159,26.19472095,191.09,191.02,26.19472095]
[1734676417581,0.98128653,191.13,191.02,26.19472095]
[1734676417737,26.19472095,191.11,191.02,26.19472095]
[1734676418644,26.19472095,191.11,190.99,23.776884]
[1734676418843,26.19472095,191.09,191.01,26.19472095]
[1734676419841,26.19472095,191.07,191.01,26.19472095]
[1734676421662,26.19472095,191.05,190.98,3.1369]
[1734676422240,26.19472095,191.03,190.95,26.19472095]
[1734676423063,16.4604448,191.04,190.96,17.0994924]
[1734676423250,0.98164751,191.03,190.96,17.0994924]
[1734676423851,17.44209231,191.03,190.96,0.6390476]
[1734676425374,16.4604448,191.01,190.96,0.6390476]
[1734676426065,16.4604448,191.02,190.96,0.6390476]
[1734676426273,16.4604448,191.06,190.98,16.4604448]
[1734676426458,16.4604448,191.06,190.99,16.4604448]
[1734676426771,17.44190491,191.11,191.04,16.4604448]
[1734676426959,16.4604448,191.12,191.05,16.4604448]
[1734676427560,16.4604448,191.11,191.04,16.4604448]
[1734676427749,16.4604448,191.1,191.03,16.4604448]
[1734676427949,0.98123383,191.09,191.03,16.4604448]
[1734676428176,17.44167863,191.09,191.02,16.4604448]
[1734676428678,16.4604448,191.09,191.02,16.4604448]
[1734676428973,0.98131224,191.15,191.03,26.31743782]
[1734676429169,6.6118,191.22,191.14,26.31743782]
[1734676429170,0.9809859,191.21,191.14,26.31743782]
[1734676429372,7.59251064,191.22,191.16,26.31743782]
[1734676429676,0.98071064,191.22,191.16,26.31743782]
[1734676430251,0.98071064,191.22,191.14,26.31743782]
[1734676430464,26.31743782,191.19,191.11,26.31743782]
[1734676430643,0.98096921,191.18,191.11,26.31743782]
[1734676431475,26.31743782,191.17,191.09,26.31743782]
[1734676431665,26.31743782,191.15,191.07,29.42403782]
[1734676431967,0.98111907,191.14,191.07,29.42403782]
[1734676432771,0.9811317,191.14,191.09,26.31743782]
[1734676433360,0.9811317,191.14,191.07,26.31743782]
[1734676434052,26.31743782,191.11,191.03,26.31743782]
[1734676434251,0.98135653,191.1,191.03,26.31743782]
[1734676435875,0.98135653,191.1,191.05,26.31743782]
[1734676437571,26.31743782,191.09,190.96,0.6390476]
[1734676437780,0.98151477,191.08,191.01,26.31743782]
[1734676439056,26.31743782,191.11,191.03,26.31743782]
[1734676439256,27.2987324,191.13,191.05,26.31743782]
[1734676440286,27.2987324,191.13,191.06,26.31743782]
[1734676440459,27.29863361,191.14,191.07,26.31743782]
[1734676441347,26.31743782,191.11,191.04,26.31743782]
[1734676441578,26.31743782,191.09,191.01,26.31743782]
[1734676441760,27.29899857,191.08,191.0,26.31743782]
[1734676441964,27.29899857,191.08,190.96,0.6390476]
[1734676441965,26.31743782,191.07,190.96,0.6390476]
[1734676442164,26.31743782,191.07,190.99,26.31743782]
[1734676442165,0.981595,191.06,190.99,26.31743782]
[1734676442369,0.981595,191.06,191.0,26.31743782]
[1734676442570,26.31743782,191.1,191.03,26.31743782]
[1734676442770,26.31743782,191.11,191.03,26.31743782]
[1734676442964,0.98130794,191.1,191.03,26.31743782]
[1734676443170,27.29874576,191.1,191.03,26.31743782]
[1734676443374,26.31743782,191.08,191.0,26.31743782]
[1734676443666,26.31743782,191.05,190.97,26.31743782]
[1734676443871,0.98163776,191.04,190.97,26.31743782]
[1734676444079,26.31743782,190.98,190.96,0.6390476]
[1734676444288,0.98205339,190.97,190.96,0.6390476]
[1734676444463,26.31743782,190.97,190.96,0.6390476]
[1734676445768,30.11549963,190.97,190.96,0.6390476]
[1734676445977,30.11549963,190.97,190.96,4.76e-05]
[1734676446183,30.11549963,190.97,190.82,9.5721]
[1734676446184,20.0,190.93,190.82,9.5721]
[1734676446373,26.31743782,190.86,190.77,8.40101008]
[1734676446567,27.29998783,190.85,190.78,26.31743782]
[1734676446774,26.31743782,190.83,190.77,8.40101008]
[1734676447170,26.31743782,190.81,190.77,8.40101008]
[1734676447467,26.31743782,190.82,190.77,0.6390476]
[1734676447667,26.31743782,190.83,190.77,0.6390476]
[1734676447869,0.98271962,190.82,190.77,0.6390476]
[1734676448489,26.31743782,190.85,190.78,26.31743782]
[1734676448688,26.31743782,190.86,190.79,26.31743782]
[1734676448992,26.31743782,190.9,190.83,26.31743782]
[1734676450072,26.31743782,190.88,190.81,26.31743782]
[1734676450276,27.29990809,190.87,190.8,26.31743782]
[1734676450590,26.31743782,190.88,190.8,26.31743782]
[1734676450801,26.31743782,190.88,190.81,26.31743782]
[1734676450969,26.31743782,190.89,190.82,26.31743782]
[1734676451286,0.98235191,190.88,190.81,26.31743782]
[1734676451484,26.31743782,190.89,190.81,26.31743782]
[1734676451672,26.31743782,190.9,190.82,26.31743782]
[1734676451867,0.98241737,190.94,190.84,26.31743782]
[1734676451868,26.31743782,190.91,190.84,26.31743782]
[1734676452070,26.31743782,190.92,190.85,26.31743782]
[1734676453091,26.31743782,190.91,190.84,26.31743782]
[1734676454086,26.31743782,190.89,190.82,26.31743782]
[1734676454269,26.31743782,190.88,190.81,26.31743782]
[1734676454473,26.31743782,190.89,190.82,26.31743782]
[1734676455382,27.29975494,190.88,190.78,9.4567]
[1734676455584,0.98231712,190.88,190.81,26.31743782]
[1734676455774,26.31743782,190.91,190.83,26.31743782]
[1734676456092,26.31743782,190.93,190.85,26.31743782]
[1734676456287,27.29959336,190.92,190.84,26.31743782]
[1734676456879,27.29959336,190.92,190.85,26.31743782]
[1734676458394,26.31743782,190.9,190.83,26.31743782]
[1734676458774,26.31743782,190.84,190.77,0.6390476]
[1734676458979,26.31743782,190.86,190.78,26.31743782]
[1734676459180,0.98248832,190.85,190.78,26.31743782]
[1734676459379,26.31743782,190.86,190.78,26.31743782]
[1734676462474,26.31743782,190.88,190.8,26.31743782]
[1734676462696,27.29996221,190.89,190.77,0.6390476]
[1734676463000,26.31743782,190.89,190.82,26.31743782]
[1734676464386,26.31743782,190.89,190.78,9.311]
[1734676464699,26.31743782,190.89,190.81,26.31743782]
[1734676465398,26.31743782,190.82,190.77,0.6390476]
[1734676465599,26.31743782,190.79,190.77,0.6390476]
[1734676465788,0.98307731,190.78,190.77,0.6390476]
[1734676468598,26.31743782,190.8,190.77,0.6390476]
[1734676468778,0.98285708,190.79,190.77,0.6390476]
[1734676468979,27.30030166,190.8,190.77,0.6390476]
[1734676469193,26.31743782,190.79,190.77,0.6390476]
[1734676469589,26.31743782,190.81,190.77,0.6390476]
[1734676469987,27.30020771,190.8,190.77,0.6390476]
[1734676470392,26.31743782,190.79,190.77,0.6390476]
[1734676472103,27.30031829,190.78,190.77,0.6390476]
[1734676472483,27.30031829,190.78,190.77,4.76e-05]
[1734676475523,26.31743782,190.8,190.77,4.76e-05]
[1734676475855,0.98288863,190.79,190.77,4.76e-05]
[1734676477011,26.31743782,190.78,190.77,4.76e-05]
[1734676477506,26.31743782,190.79,190.77,4.76e-05]
[1734676477811,0.98294972,190.78,190.77,4.76e-05]
[1734676478003,27.30038754,190.78,190.77,4.76e-05]
[1734676479213,0.98294972,190.78,190.77,4.76e-05]
[1734676479419,27.30038754,190.78,190.77,4.76e-05]
[1734676479743,0.98294972,190.78,190.77,4.76e-05]
[1734676480038,26.31743782,190.83,190.77,4.76e-05]
[1734676480245,27.30024167,190.86,190.78,26.31743782]
[1734676480407,27.30024167,190.86,190.79,26.31743782]
[1734676480606,26.31743782,190.87,190.79,26.31743782]
[1734676480809,26.31743782,190.89,190.81,26.31743782]
[1734676481454,26.31743782,190.87,190.77,9.8619476]
[1734676481613,26.31743782,190.88,190.81,26.31743782]
[1734676481808,27.29982674,190.92,190.85,26.31743782]
[1734676482035,6.3667,190.98,190.87,26.31743782]
[1734676482036,26.31743782,190.95,190.87,26.31743782]
[1734676482341,30.09512898,190.94,190.87,26.31743782]
[1734676482814,26.31743782,190.94,190.87,26.31743782]
[1734676483006,26.31743782,190.96,190.88,26.31743782]
[1734676483339,27.29948427,190.95,190.87,26.31743782]
[1734676483508,30.0986115,190.95,190.88,26.31743782]
[1734676483703,30.0986115,190.95,190.88,32.79133782]
[1734676483704,3.78117368,190.95,190.88,32.79133782]
[1734676484012,26.31743782,190.97,190.89,26.31743782]
[1734676485206,26.31743782,190.97,190.88,9.6252]
[1734676485207,3.78515689,190.96,190.91,26.31743782]
[1734676485433,3.78515689,190.96,190.95,26.31743782]
[1734676485627,0.98190628,191.02,190.95,26.31743782]
[1734676486130,3.78641447,191.01,190.96,26.31743782]
[1734676486318,27.29914299,191.0,190.93,26.31743782]
[1734676486633,3.78641447,190.99,190.93,26.31743782]
[1734676486829,3.78641447,190.99,190.94,26.31743782]
[1734676487129,26.31743782,190.99,190.92,26.31743782]
[1734676487327,26.31743782,190.97,190.9,26.31743782]
[1734676487535,27.29920245,190.98,190.91,26.31743782]
[1734676488138,3.79425606,190.97,190.91,26.31743782]
[1734676488335,26.31743782,190.95,190.88,35.94263782]
[1734676488634,4.77623599,190.96,190.8,26.31743782]
[1734676488635,26.31743782,190.93,190.86,26.31743782]
[1734676488931,4.77647347,190.92,190.83,9.8307]
[1734676489333,0.98221741,190.92,190.73,9.218]
[1734676489538,23.776884,190.91,190.73,9.218]
[1734676489732,4.77867263,190.9,190.73,9.218]
[1734676489931,26.31743782,190.86,190.79,26.31743782]
[1734676490447,26.31743782,190.86,190.78,26.31743782]
[1734676490649,26.31743782,190.86,190.79,26.31743782]
[1734676490946,3.7965988,190.85,190.8,26.31743782]
[1734676491240,26.31743782,190.88,190.81,26.31743782]
[1734676492039,0.98241907,190.87,190.81,26.31743782]
[1734676492332,0.98241907,190.87,190.8,26.31743782]
[1734676492723,26.31743782,190.88,190.8,26.31743782]
[1734676492923,26.31743782,190.88,190.81,26.31743782]
[1734676493433,26.31743782,190.9,190.82,26.31743782]
[1734676493624,26.31743782,190.88,190.81,26.31743782]
[1734676493834,0.9824921,190.87,190.81,26.31743782]
[1734676494231,0.9824921,190.87,190.8,26.31743782]
[1734676494552,27.29992992,190.87,190.8,26.31743782]
[1734676494947,27.29992992,190.87,190.79,26.31743782]
[1734676495121,26.31743782,190.86,190.79,26.31743782]
[1734676495528,26.31743782,190.87,190.79,26.31743782]
[1734676495828,0.98252128,190.86,190.79,26.31743782]
[1734676496245,0.98252128,190.86,190.73,9.218]
[1734676496246,26.31743782,190.88,190.81,26.31743782]
[1734676496457,27.29986739,190.87,190.8,26.31743782]
[1734676497054,24.1401302,190.93,190.81,26.31743782]
[1734676497055,26.31743782,190.89,190.81,26.31743782]
[1734676497216,0.98239723,190.88,190.82,26.31743782]
[1734676498643,0.98239723,190.88,190.81,26.31743782]
[1734676498823,0.98239723,190.88,190.82,26.31743782]
[1734676499137,26.31743782,190.9,190.83,26.31743782]
[1734676499342,0.98234999,190.89,190.83,26.31743782]
[1734676499541,26.31743782,190.9,190.83,26.31743782]
[1734676499727,0.98232953,190.89,190.83,26.31743782]
[1734676499929,0.98235537,190.94,190.86,26.31743782]
[1734676500443,26.31743782,190.97,190.88,26.31743782]
[1734676500644,0.98206406,190.96,190.88,26.31743782]